Cogmind - Beta 13 @@@ ROGUE MODE // 2024.04.14 @ 23:07:37 Player: Kate+Gabe4evr Result: Destroyed by G-50 Soldier with Heavy Laser Performance ------------- Evolutions (4) 2000 Regions Visited (11) 2200 Robots Destroyed (57) 285 Value Destroyed (2002) 2002 Prototype IDs (9) 180 Alien Tech Used (0) 0 Bonus (970) 970 TOTAL SCORE: 7637 Bonus ------- High Alert Combat Kills 151 Follower Combat Kills 869 Met Imprinter 300 Was Imprinted 300 Friendly Fire -650 Cogmind --------- Core Integrity 0/850 Matter 20/300 Energy 100/100 System Corruption 9% Temperature Cool (27) Movement Treading (160) Location -6/Hub_04(d) Parts ------- > --- POWER (2) -------- (None) > --- PROPULSION (5) --- Medium Treads > --- UTILITY (6) ------ (None) > --- WEAPON (2) ------- (None) > --- INVENTORY (5) ---- Heavy Ion Engine Light Nuclear Core Plasma Rifle Neutron Cannon Improved Grenade Launcher Peak State ------------ > --- POWER ------------ Improved Deuterium Engine Fission Core > --- PROPULSION ------- Improved Treads Medium Treads Medium Treads Medium Treads Medium Treads > --- UTILITY ---------- Advanced Heat Sink Medium Storage Unit Enhanced Optical Array Armor Integrity Analyzer Improved Heavy Armor Plating > --- WEAPON ----------- Improved Grenade Launcher Improved Grenade Launcher > --- INVENTORY -------- Heavy Ion Engine Light Nuclear Core Improved Treads Plasma Rifle Heavy Beamcaster Neutron Cannon Coil Gun Heavy Flak Cannon Improved Grenade Launcher [Rating: 61] Favorites ----------- Power Heavy Ion Engine Engine Heavy Ion Engine Power Core Light Nuclear Core Reactor Cold Fusion Reactor Propulsion Aluminum Leg Treads Medium Treads Leg Aluminum Leg Utility Medium Storage Unit Device Heat Sink Storage Medium Storage Unit Processor Improved Targeting Computer Protection Improved Heavy Armor Plating Weapon Improved Grenade Launcher Energy Gun Medium Laser Energy Cannon Particle Cannon Ballistic Gun High-powered Shotgun Ballistic Cannon Heavy Flak Cannon Launcher Improved Grenade Launcher Build | -11 -10 -10 -9 -9 -7 -6 -6 -6 -6 -6 -6 ------- Run | Yrd Mat Min Mat Min Zio Pro Fac Ext Cet Arc Hub Slots Evolved 8 | . . . 2 . . . 6 . . . . Power 1 | . . . . . . . 1 . . . . Propulsion 3 | . . . 2 . . . 1 . . . . Utility 4 | . . . . . . . 4 . . . . Weapon . | . . . . . . . . . . . . Parts Attached 77 | 6 2 1 13 3 2 1 21 24 1 2 1 Power 15 | 1 . 1 2 . . 1 5 4 1 . . Engine 5 | 1 . . 2 . . 1 . 1 . . . Core 8 | . . 1 . . . . 4 2 1 . . Reactor 2 | . . . . . . . 1 1 . . . Propulsion 23 | 2 . . 6 3 1 . 3 6 . 1 1 Treads 8 | . . . . . . . . 6 . 1 1 Leg 15 | 2 . . 6 3 1 . 3 . . . . Wheel . | . . . . . . . . . . . . Hover . | . . . . . . . . . . . . Flight . | . . . . . . . . . . . . Utility 17 | 1 2 . 1 . . . 6 7 . . . Device 8 | . 1 . . . . . 4 3 . . . Storage 3 | 1 1 . . . . . . 1 . . . Processor 3 | . . . 1 . . . 1 1 . . . Hackware . | . . . . . . . . . . . . Protection 3 | . . . . . . . 1 2 . . . Artifact . | . . . . . . . . . . . . Weapon 22 | 2 . . 4 . 1 . 7 7 . 1 . Energy Gun 4 | 1 . . 1 . . . 1 1 . . . Energy Cannon 3 | . . . . . . . 2 1 . . . Ballistic Gun 6 | 1 . . 3 . . . 2 . . . . Ballistic Cannon 2 | . . . . . . . 1 . . 1 . Launcher 7 | . . . . . 1 . 1 5 . . . Special Weapon . | . . . . . . . . . . . . Impact Weapon . | . . . . . . . . . . . . Slashing Weapon . | . . . . . . . . . . . . Piercing Weapon . | . . . . . . . . . . . . Special Melee Weapon . | . . . . . . . . . . . . Unidentified Prototypes 7 | . . . 1 . 1 . 4 1 . . . Parts Lost 38 | . . . 2 . . . 19 7 3 5 2 Power 3 | . . . . . . . 1 1 1 . . Propulsion 11 | . . . . . . . 7 . 2 2 . Utility 13 | . . . 1 . . . 4 4 . 2 2 Weapon 11 | . . . 1 . . . 7 2 . 1 . Highest Loss Streak 17 | . . . 1 . . . 17 3 3 5 2 To Critical Strikes 3 | . . . . . . . 1 . 1 1 . Average Slot Usage (%) 87 | . 92 100 99 100 92 88 82 71 80 57 16 Engine 7 | . 14 6 1 11 11 11 5 3 . . . Core 2 | . . 8 8 . . . . 2 11 8 . Reactor 1 | . . . . . . . 4 4 . . . Treads 6 | . . . . . . . . 26 21 12 6 Leg 29 | . 28 28 44 44 44 44 30 . . . . Device 4 | . 6 14 2 . . . 13 5 6 3 . Storage 9 | . 14 14 11 11 11 11 5 5 6 5 . Processor 8 | . . . 7 11 11 11 10 6 13 13 9 Energy Gun 2 | . 14 14 10 . . . 1 . . . . Ballistic Gun 6 | . 14 14 11 22 7 . . . . . . Launcher 6 | . . . . . 7 11 4 11 13 6 . Naked Turns . | . . . . . . . . . . . . Heaviest Build 60 | 12 18 20 24 24 28 33 50 58 58 60 . Greatest Support 135 | 20 20 20 40 43 53 53 63 135 135 79 28 Greatest Overweight (x) 1 | 1 . . . . . . 1 . . 1 . Average Overweight (x) . | . . . . . . . . . . . . Largest Inventory Capacity 10 | 8 10 10 10 10 10 10 10 10 10 10 5 Average Capacity 9 | 7 9 10 10 10 10 10 9 9 10 9 5 Most Carried 10 | 2 3 6 10 10 10 10 9 10 10 10 5 Average Carried 7 | . 2 4 7 9 8 8 7 7 9 9 5 Final Capacity 10 | 8 10 10 10 10 10 10 5 10 10 5 5 Final Carried 10 | 2 2 6 10 10 8 10 5 9 10 5 5 Class Distribution -------------------- 75% | Mutant 23% | Scavenger-Mutant Dominant Class ---------------- Mutant | -10/Materials Mutant | -10/Mines Scavenger-Mutant | -9/Materials Mutant | -9/Mines Mutant | -7/Zion Mutant | -6/Proximity Caves Scavenger-Mutant | -6/Factory Mutant | -6/Extension Scavenger-Mutant | -6/Cetus Mutant | -6/Archives Mutant | -6/Hub_04(d) Resources | -11 -10 -10 -9 -9 -7 -6 -6 -6 -6 -6 -6 ----------- Run | Yrd Mat Min Mat Min Zio Pro Fac Ext Cet Arc Hub Matter Collected 1831 | 253 . 81 233 191 20 100 296 572 85 . . Remotely . | . . . . . . . . . . . . Salvage Created 1726 | . . 101 425 264 . 141 500 155 140 . . Parts 94 | . . 8 30 11 . 4 27 10 4 . . Haulers Intercepted 1 | . . . 1 . . . . . . . . Recyclers Shooed 1 | . . . . . . . . 1 . . . Parts Field Recycled . | . . . . . . . . . . . . Retrieved Matter . | . . . . . . . . . . . . Parts Self-Destructed 4 | . . . . . . 4 . . . . . Prevented . | . . . . . . . . . . . . Kills | -11 -10 -10 -9 -9 -7 -6 -6 -6 -6 -6 -6 ------- Run | Yrd Mat Min Mat Min Zio Pro Fac Ext Cet Arc Hub Combat Hostiles Destroyed 36 | . . 4 9 2 . 2 10 6 3 . . Guns 16 | . . 4 8 2 . . 2 . . . . Cannons 2 | . . . . . . . 2 . . . . AOE 17 | . . . . . . 2 6 6 3 . . Classes Destroyed 16 | . . 2 4 1 . 1 5 1 2 . . Worker 3 | . . . . . . . 3 . . . . Builder 3 | . . . . . . . 2 1 . . . Tunneler 1 | . . . . . . . . 1 . . . Hauler 1 | . . . 1 . . . . . . . . Recycler 4 | . . . . 3 . . 1 . . . . Mechanic 1 | . . . 1 . . . . . . . . Operator 1 | . . . . . . . 1 . . . . Watcher 4 | . . . 2 . . . . 1 1 . . Swarmer 10 | . . 2 4 . . . . 4 . . . Grunt 13 | . . 2 4 2 . 1 2 2 . . . Sentry 5 | . . . 1 . . 1 3 . . . . Hunter 6 | . . . . . . . 4 . 2 . . Programmer 1 | . . . . . . . 1 . . . . Cetus Guard 1 | . . . . . . . . . 1 . . Savage 1 | . . . . . . . . . 1 . . Butcher 1 | . . . . . . . . . 1 . . Mutant 1 | . . . . . . 1 . . . . . Best Kill Streak 5 | . . 2 3 4 . 2 5 4 2 . . Combat Bots Only 4 | . . 2 3 2 . 2 2 4 2 . . Max Kills in Single Turn 3 | . . 2 1 2 . 2 3 2 2 . . Gunslinging 1 | . . 1 . . . . . . . . . Exploded 2 | . . . . . . 2 1 2 2 . . Melee . | . . . . . . . . . . . . Uniques/NPCs Destroyed . | . . . . . . . . . . . . Combat | -11 -10 -10 -9 -9 -7 -6 -6 -6 -6 -6 -6 -------- Run | Yrd Mat Min Mat Min Zio Pro Fac Ext Cet Arc Hub Hostile Shots Fired 591 | . 11 26 49 11 . 5 223 148 48 63 7 Missed 188 | . 5 7 7 1 . 1 68 61 17 20 1 Damage Taken 6116 | . 72 212 427 122 . 91 2277 1090 679 1011 135 Core 953 | . 17 36 27 20 . . 368 110 35 246 94 Absorbed by Shields 116 | . . . . . . . . 116 . . . Regen/Repaired (Parts) 222 | . . . . . 222 . . . . . . Core Remaining (%) 88 | 100 . 78 . . . 88 . . . . . Volleys Fired 142 | . . 15 44 12 . 6 44 8 10 3 . Largest 2 | . . 2 2 2 . 1 2 2 2 2 . Hottest 116 | . . 70 76 50 . 39 116 72 72 72 . Shots Fired 259 | . . 31 88 24 . 6 68 16 20 6 . Gun 168 | . . 31 88 24 . . 25 . . . . Cannon 23 | . . . . . . . 23 . . . . Launcher 68 | . . . . . . 6 20 16 20 6 . Special . | . . . . . . . . . . . . Kinetic 106 | . . 16 46 24 . . 20 . . . . Thermal 85 | . . 15 42 . . . 28 . . . . Explosive 68 | . . . . . . 6 20 16 20 6 . Electromagnetic . | . . . . . . . . . . . . Robot Hit Streak 26 | . . 7 8 10 . 8 26 1 . . . Robot Miss Streak 8 | . . 5 8 4 . . 4 2 . . . Penetration Max . | . . . . . . . . . . . . Secondary Targets 3 | . . 1 1 1 . . . . . . . Max Gunslinging Chain 1 | . . 1 1 1 . . . . . . . Shots Hit Robots 144 | . . 18 52 19 . 4 48 3 . . . Core Hits 161 | . . 7 18 9 . 9 46 28 35 8 1 Critical Kills . | . . . . . . . . . . . . Critical Parts Destroyed . | . . . . . . . . . . . . Critical Strikes 4 | . . . 4 . . . . . . . . Burn 4 | . . . 4 . . . . . . . . Melee Attacks . | . . . . . . . . . . . . Impact . | . . . . . . . . . . . . Slashing . | . . . . . . . . . . . . Piercing . | . . . . . . . . . . . . Sneak Attacks . | . . . . . . . . . . . . Combat Hostiles . | . . . . . . . . . . . . Follow-up Attacks . | . . . . . . . . . . . . Damage Inflicted 6821 | . . 227 720 412 . 407 2362 1292 1147 253 1 Guns 1778 | . . 220 720 412 . . 426 . . . . Cannons 307 | . . . . . . . 307 . . . . Explosions 4720 | . . . . . . 407 1629 1284 1147 253 . Melee . | . . . . . . . . . . . . Ramming 16 | . . 7 . . . . . 8 . . 1 Kinetic 1099 | . . 108 357 412 . . 222 . . . . Thermal 1342 | . . 112 363 . . . 716 151 . . . Explosive 4364 | . . . . . . 407 1424 1133 1147 253 . Electromagnetic . | . . . . . . . . . . . . Impact . | . . . . . . . . . . . . Slashing . | . . . . . . . . . . . . Piercing . | . . . . . . . . . . . . Highest Corruption 9 | . 1 1 5 5 5 . . 4 4 4 9 Average Corruption 3 | . 1 1 5 5 5 . . 2 4 4 5 Corruption Purged . | . . . . . . . . . . . . Corruption Blocked . | . . . . . . . . . . . . Effects 31 | . . 2 3 11 1 . . 5 8 1 . Message Errors 16 | . . 1 1 4 . . . 5 5 . . Matter Fused 8 | . . . 2 3 . . . . 2 1 . Energy Discharges 3 | . . . . 2 1 . . . . . . Parts Fused 1 | . . . . . . . . . 1 . . Data Loss (minor) 2 | . . . . 2 . . . . . . . Misfires 1 | . . 1 . . . . . . . . . Overload Shots . | . . . . . . . . . . . . Overflow Damage 25 | . . . . . . . 6 3 8 8 . Projectiles . | . . . . . . . . . . . . Explosions 25 | . . . . . . . 6 3 8 8 . Melee . | . . . . . . . . . . . . Knockbacks 1 | . . . . . . . 1 . . . . Impact . | . . . . . . . . . . . . Kinetic 1 | . . . . . . . 1 . . . . Secondary . | . . . . . . . . . . . . Self-Inflicted Damage 31 | . . . . . . 17 14 . . . . Shots 2 | . . . . . . 1 1 . . . . Rammed 4 | . . . . . . . . 3 . . 1 Targets Rammed 6 | . . 1 . . . . . 4 . . 1 Kicked 1 | . . 1 . . . . . . . . . Crushed 1 | . . . . . . . . 1 . . . Highest Temperature 114 | . . 2 114 9 . 6 65 18 . 11 . Average Temperature 28 | . . 2 37 4 . 4 15 9 . 9 . Received Heat Transfer 1056 | . . 84 156 60 . 36 198 216 54 189 63 Siege Activations . | . . . . . . . . . . . . Robots Corrupted . | . . . . . . . . . . . . Combat Hostiles . | . . . . . . . . . . . . Parts Fried . | . . . . . . . . . . . . Impact Corruptions . | . . . . . . . . . . . . Robots Melted 1 | . . . 1 . . . . . . . . Combat Hostiles 1 | . . . 1 . . . . . . . . Parts Melted 5 | . . 1 2 . . . 2 . . . . Heat Transferred 2872 | . . 333 1295 . . . 1194 50 . . . Parts Sabotaged . | . . . . . . . . . . . . Parts Stolen . | . . . . . . . . . . . . Parts Stripped . | . . . . . . . . . . . . Power Chain Reactions . | . . . . . . . . . . . . Alert | -11 -10 -10 -9 -9 -7 -6 -6 -6 -6 -6 -6 ------- Run | Yrd Mat Min Mat Min Zio Pro Fac Ext Cet Arc Hub Peak Influence 572 | . 17 106 306 165 . . 572 540 429 259 94 Initial 301 | . . 6 40 69 . . . 176 301 171 79 Average 227 | . 1 49 159 104 . . 248 403 366 227 82 Maximum Alert Level 2 | . . . 1 . . . 2 2 2 1 . Low Security (%) 49 | 100 100 100 67 100 . . 44 2 . 7 100 Level 1 31 | . . . 32 . . . 24 48 88 92 . Level 2 18 | . . . . . . . 31 48 11 . . Level 3 . | . . . . . . . . . . . . Level 4 . | . . . . . . . . . . . . Level 5 . | . . . . . . . . . . . . High Security . | . . . . . . . . . . . . Max Security . | . . . . . . . . . . . . Squads Dispatched 13 | . . . 2 . . . 7 2 1 . 1 Investigation 2 | . . . . . . . 1 . 1 . . Extermination 1 | . . . . . . . 1 . . . . Reinforcement 7 | . . . 2 . . . 2 2 . . 1 Assault . | . . . . . . . . . . . . Garrison 3 | . . . . . . . 3 . . . . Intercept . | . . . . . . . . . . . . Searches Triggered . | . . . . . . . . . . . . Construction Impeded 2 | . . . . . . . 1 1 . . . Haulers Reinforced . | . . . . . . . . . . . . Active Scanning Responses . | . . . . . . . . . . . . Cargo Convoy Interrupts . | . . . . . . . . . . . . Stealth | -11 -10 -10 -9 -9 -7 -6 -6 -6 -6 -6 -6 --------- Run | Yrd Mat Min Mat Min Zio Pro Fac Ext Cet Arc Hub Distress Signals 4 | . . . 1 . . . . 2 1 . . Communications Jammed . | . . . . . . . . . . . . Distress Signals . | . . . . . . . . . . . . Times Spotted 90 | . 4 5 17 4 . 4 18 18 7 8 5 Peak Tracking Total 5 | . 5 2 4 3 . 3 5 4 5 4 5 Tactical Retreats 2 | . . . 2 . . . . . . . . Traps | -11 -10 -10 -9 -9 -7 -6 -6 -6 -6 -6 -6 ------- Run | Yrd Mat Min Mat Min Zio Pro Fac Ext Cet Arc Hub Traps Triggered 4 | . 2 . . . . . . 1 . . 1 Indirectly . | . . . . . . . . . . . . Trap Hack Attempts . | . . . . . . . . . . . . Triggered . | . . . . . . . . . . . . Disarmed . | . . . . . . . . . . . . Reprogrammed . | . . . . . . . . . . . . Reused . | . . . . . . . . . . . . Traps Extracted . | . . . . . . . . . . . . Installed . | . . . . . . . . . . . . Triggered . | . . . . . . . . . . . . Machines | -11 -10 -10 -9 -9 -7 -6 -6 -6 -6 -6 -6 ---------- Run | Yrd Mat Min Mat Min Zio Pro Fac Ext Cet Arc Hub Machines Disabled 29 | . . . . . . . 22 5 . 2 . Max in Single Turn 18 | . . . . . . . 18 1 . 2 . Energy Cycler 1 | . . . . . . . . 1 . . . Machines Repaired . | . . . . . . . . . . . . Machines Dismantled . | . . . . . . . . . . . . Machines Sabotaged . | . . . . . . . . . . . . Overloaded Fab Kills . | . . . . . . . . . . . . Hacking | -11 -10 -10 -9 -9 -7 -6 -6 -6 -6 -6 -6 --------- Run | Yrd Mat Min Mat Min Zio Pro Fac Ext Cet Arc Hub Machines Accessed 10 | . 1 . . . 1 . 2 3 3 . . Terminals 8 | . 1 . . . . . 1 3 3 . . Fabricators . | . . . . . . . . . . . . Repair Stations . | . . . . . . . . . . . . Recycling Units . | . . . . . . . . . . . . Scanalyzers . | . . . . . . . . . . . . Garrison Access 1 | . . . . . . . 1 . . . . Total Hacks 25 | . 5 . . . 4 . 4 4 8 . . Successful 12 | . 3 . . . 4 . 1 3 1 . . Failed 13 | . 2 . . . . . 3 1 7 . . Catastrophic . | . . . . . . . . . . . . Database Lockouts . | . . . . . . . . . . . . Manual 13 | . . . . . . . 3 9 1 . . Terminals 19 | . 5 . . . . . 2 4 8 . . Fabricators . | . . . . . . . . . . . . Repair Stations . | . . . . . . . . . . . . Recycling Units . | . . . . . . . . . . . . Scanalyzers . | . . . . . . . . . . . . Garrison Access 2 | . . . . . . . 2 . . . . Terminal Hacks 12 | . 3 . . . 4 . 1 3 1 . . Record 3 | . 2 . . . . . . . 1 . . Part Schematic 4 | . . . . . 4 . . . . . . Prototype ID Bank 1 | . 1 . . . . . . . . . . Open Door 3 | . . . . . . . . 3 . . . Open DSF 1 | . . . . . . . 1 . . . . Fabricator Hacks . | . . . . . . . . . . . . Repair Station Hacks . | . . . . . . . . . . . . Recycling Unit Hacks . | . . . . . . . . . . . . Scanalyzer . | . . . . . . . . . . . . Garrison Access Hacks . | . . . . . . . . . . . . Unauthorized Hacks . | . . . . . . . . . . . . Terminals . | . . . . . . . . . . . . Fabricators . | . . . . . . . . . . . . Repair Stations . | . . . . . . . . . . . . Recycling Units . | . . . . . . . . . . . . Scanalyzers . | . . . . . . . . . . . . Garrison Access . | . . . . . . . . . . . . Data Cores Recovered . | . . . . . . . . . . . . Used . | . . . . . . . . . . . . Hacking Detections 5 | . . . . . . . 2 1 2 . . Full Trace Events 1 | . . . . . . . . . 1 . . Feedback Events . | . . . . . . . . . . . . Feedback Blocked . | . . . . . . . . . . . . Robot Schematics Acquired . | . . . . . . . . . . . . Robots Built . | . . . . . . . . . . . . Authchips . | . . . . . . . . . . . . Time . | . . . . . . . . . . . . Total Robot Build Rating . | . . . . . . . . . . . . Part Schematics Acquired 4 | . . . . . 4 . . . . . . Parts Built . | . . . . . . . . . . . . Authchips . | . . . . . . . . . . . . Time . | . . . . . . . . . . . . Total Part Build Rating . | . . . . . . . . . . . . Parts Repaired . | . . . . . . . . . . . . Time . | . . . . . . . . . . . . Parts Recycled . | . . . . . . . . . . . . Recycled Matter . | . . . . . . . . . . . . Retrieved Matter . | . . . . . . . . . . . . Retrieved Components . | . . . . . . . . . . . . Parts Scanalyzed . | . . . . . . . . . . . . Part Schematics Acquired . | . . . . . . . . . . . . Parts Damaged . | . . . . . . . . . . . . Bothacking | -11 -10 -10 -9 -9 -7 -6 -6 -6 -6 -6 -6 ------------ Run | Yrd Mat Min Mat Min Zio Pro Fac Ext Cet Arc Hub Used RIF Installer . | . . . . . . . . . . . . Robots Hacked . | . . . . . . . . . . . . Non-combat . | . . . . . . . . . . . . Combat . | . . . . . . . . . . . . Robot Hacks Applied . | . . . . . . . . . . . . Relay Couplers Released . | . . . . . . . . . . . . Fabnet Peak Effective % . | . . . . . . . . . . . . Robots Rewired 4 | . . . . . . . . 4 . . . Allies Hacked . | . . . . . . . . . . . . Hacks Repelled . | . . . . . . . . . . . . Allies | -11 -10 -10 -9 -9 -7 -6 -6 -6 -6 -6 -6 -------- Run | Yrd Mat Min Mat Min Zio Pro Fac Ext Cet Arc Hub Total Allies 21 | . . . . 4 4 . 1 12 . . . Largest Group 5 | . . . . 3 5 5 2 5 4 . . Highest-Rated Group 391 | . . . . 47 171 171 68 391 115 . . Highest-Rated Ally 159 | . . . . 31 41 41 40 159 39 . . Zionite Dispatches 2 | . . . . . . . 1 1 . . . Recon 1 | . . . . . . . . 1 . . . Explosive Resupply 1 | . . . . . . . 1 . . . . Total Orders . | . . . . . . . . . . . . Ally Attacks 156 | . . . . 28 . 25 1 78 24 . . Total Damage 4164 | . . . . 289 . 560 9 2982 324 . . Kills 30 | . . . . 6 . 5 . 17 2 . . Allies Corrupted 2 | . . . . . . . . 2 . . . Allies Melted . | . . . . . . . . . . . . Intel | -11 -10 -10 -9 -9 -7 -6 -6 -6 -6 -6 -6 ------- Run | Yrd Mat Min Mat Min Zio Pro Fac Ext Cet Arc Hub Robot Analysis Total . | . . . . . . . . . . . . Derelict Logs Recovered 6 | . . 1 . 2 1 2 . . . . . Drone Launches 4 | . . . . . . . 2 2 . . . Drone Recoveries 2 | . . . . . . . 2 . . . . Zionite Intel Received 1 | . . . . . . . . 1 . . . Depthwide Sectors/-1 1 | . . . . . . . . 1 . . . Exploration | -11 -10 -10 -9 -9 -7 -6 -6 -6 -6 -6 -6 ------------- Run | Yrd Mat Min Mat Min Zio Pro Fac Ext Cet Arc Hub Turns Passed 5903 | 87 202 357 542 554 1666 412 601 986 396 56 44 Spaces Moved 4070 | 66 166 243 318 416 1334 295 388 550 228 36 30 Core 97 | 14 . . . . . . 26 31 . 19 7 Treads 787 | . . . . . . . . 519 228 17 23 Legs 3186 | 52 166 243 318 416 1334 295 362 . . . . Wheels . | . . . . . . . . . . . . Hover . | . . . . . . . . . . . . Flight . | . . . . . . . . . . . . Fastest Speed 50 | 50 120 120 120 120 120 122 50 50 160 50 50 Average Speed 127 | 115 120 120 120 120 121 122 117 153 160 115 134 Slowest Speed 240 | 190 120 120 120 120 122 122 193 160 160 240 160 Overloaded Moves . | . . . . . . . . . . . . Propulsion Burnouts . | . . . . . . . . . . . . Robots Hopped 3 | . . . . . 3 . . . . . . Cave-ins Triggered 1 | . . . . . . . . 1 . . . Exploration Rate (%) 46 | 4 34 53 28 67 88 56 10 76 71 67 7 Regions Visited 11 Branch Regions 8 Pre-discovered Areas 5 | . . . . 1 . . . 4 . . . Known Exits Taken 1 | . . . . . . 1 . . . . . Unknown Exits Taken 10 | 1 1 1 1 1 1 . 1 1 1 1 . Scrap Searched 7 | . . . . 1 4 2 . . . . . Spaces Dug . | . . . . . . . . . . . . Terrain Destroyed 390 | . . . . . . 35 142 87 92 34 . Melee . | . . . . . . . . . . . . Projectile 1 | . . . . . . . 1 . . . . AOE 389 | . . . . . . 35 141 87 92 34 . Terrain Rammed . | . . . . . . . . . . . . Walls Destroyed . | . . . . . . . . . . . . Machines Disabled . | . . . . . . . . . . . . Actions | -11 -10 -10 -9 -9 -7 -6 -6 -6 -6 -6 -6 --------- Run | Yrd Mat Min Mat Min Zio Pro Fac Ext Cet Arc Hub Total 4517 | 73 169 277 389 450 1376 341 462 663 239 46 32 Wait 137 | . . 15 4 13 34 38 . 33 . . . Move 4053 | 65 165 242 317 415 1327 294 387 549 227 35 30 Hop 3 | . . . . . 3 . . . . . . Pick Up 31 | 2 . 3 6 2 3 1 4 9 1 . . Fast Attach 27 | 6 2 . 1 . . 1 3 12 1 . 1 Attach 27 | . . . 4 . 1 . 14 7 . 1 . Detach 8 | . 1 . . . . 1 4 . . 2 . Swap 24 | . . 1 8 3 1 . 5 5 . 1 . Drop 23 | . 1 . 5 5 7 . 1 . . 4 . Fire 142 | . . 15 44 12 . 6 44 8 10 3 . Melee . | . . . . . . . . . . . . Ram . | . . . . . . . . . . . . Kick 1 | . . 1 . . . . . . . . . Crush 5 | . . . . . . . . 4 . . 1 Escape Stasis . | . . . . . . . . . . . . Rewire 36 | . . . . . . . . 36 . . . Trap . | . . . . . . . . . . . . Miscellaneous . | . . . . . . . . . . . . Route ------- -11/Scrapyard -10/Materials -10/Mines -9/Materials -9/Mines (discovered 3 exits: [*Mat x2] / *Zio) -7/Zion -6/Proximity Caves -6/Factory -6/Extension (discovered 2 exits: [*Fac] / *Cet) -6/Cetus -6/Archives -6/Hub_04(d) History --------- Turn | Location | Event 10 | -11/Scrapyard | Discovered new exit (range 13) 88 | -11/Scrapyard | Entered Materials 277 | -10/Materials | Discovered new exit (range 12) 290 | -10/Materials | Entered Mines 308 | -10/Mines | Build established: Mutant 495 | -10/Mines | Learned Materials terminal intel 613 | -10/Mines | Discovered new exit (range 10) 647 | -10/Mines | Entered Materials 647 | -9/Materials | Evolved 2 slots: Propulsion x2 648 | -9/Materials | Loaded intel: 12 terminal locations 1179 | -9/Materials | Discovered new exit (range 7) 1186 | -9/Materials | Build established: Scavenger-Mutant 1189 | -9/Materials | Entered Mines 1228 | -9/Mines | Discovered new exit (range 6) 1412 | -9/Mines | Assisted by bots powering up and referring to "LRC-V3" 1461 | -9/Mines | Received a Rocket Launcher from a helpful Derelict 1501 | -9/Mines | Received a Mining Laser from a helpful Derelict 1540 | -9/Mines | Build established: Mutant 1732 | -9/Mines | Discovered new exit (range 10) 1738 | -9/Mines | A Derelict revealed a hidden shortcut to a safe place 1743 | -9/Mines | Entered Zion 1743 | -7/Zion | Accompanied by 2 allies 1791 | -7/Zion | System corruption cleaned by Quarantine Array 1838 | -7/Zion | Given the Hacking Drone Bay 1845 | -7/Zion | Found Prototype Device 2038 | -7/Zion | Imprinted 2040 | -7/Zion | Declared Zion's savior 2301 | -7/Zion | Found Prototype Launcher 2303 | -7/Zion | Identified Gui. Missile Launcher 2550 | -7/Zion | Given A8's code to call for help 2632 | -7/Zion | Visited the Megawrench Repair Shop 2633 | -7/Zion | Megawrench repaired 7 parts 2782 | -7/Zion | Learned Factory emergency access door positions 3353 | -7/Zion | Discovered new exit (range 16) 3409 | -7/Zion | Entered Proximity Caves 3409 | -6/Proximity Caves | Accompanied by 5 allies 3410 | -6/Proximity Caves | Identified exit to Factory 3629 | -6/Proximity Caves | Attracted the attention of an 0b10 checkpoint 3673 | -6/Proximity Caves | Lost 3 allies 3729 | -6/Proximity Caves | Learned Factory stockpile data 3730 | -6/Proximity Caves | Learned 4 Factory zone layouts 3821 | -6/Proximity Caves | Entered Factory 3821 | -6/Factory | Accompanied by 1 ally 3821 | -6/Factory | Evolved 6 slots: Power x1, Propulsion x1, Utility x4 3823 | -6/Factory | Identified Hacking Drone Bay 3978 | -6/Factory | Zion Explosive Resupply teleported in 4113 | -6/Factory | Build established: Scavenger-Mutant 4221 | -6/Factory | Found Prototype Launcher 4222 | -6/Factory | Identified Scatter Rocket Array 4412 | -6/Factory | Discovered new exit (range 22) 4422 | -6/Factory | Entered Extension 4437 | -6/Extension | Lost 17 parts (1p7n4u5w) 4438 | -6/Extension | Zion Recon squad teleported in 4439 | -6/Extension | Enhanced Grunt warped into view, answering call for help 4441 | -6/Extension | Enhanced Grunt warped into view, answering call for help 4494 | -6/Extension | Rescued A7 4580 | -6/Extension | Rescued a captive Derelict 4679 | -6/Extension | Build established: Mutant 4709 | -6/Extension | Retrieved Zion intel report: Depthwide Sectors/-1 4754 | -6/Extension | Rescued a captive Derelict 4791 | -6/Extension | Crushed by falling debris 4910 | -6/Extension | Spotted B-75 Beast 4923 | -6/Extension | Spotted B-75 Beast 4948 | -6/Extension | Allies destroyed B-75 Beast 4953 | -6/Extension | Core integrity fell below 50% 4973 | -6/Extension | Lost 4 allies 5141 | -6/Extension | Lost 3 parts (1p2w) 5261 | -6/Extension | Energy Cycler disabled 5262 | -6/Extension | Rescued a captive Derelict 5262 | -6/Extension | Rescued a captive Derelict 5263 | -6/Extension | Rescued a captive Derelict 5264 | -6/Extension | Rescued a captive Derelict 5265 | -6/Extension | Rescued a captive Derelict 5395 | -6/Extension | Discovered new exit (range 10) 5396 | -6/Extension | Discovered new exit (range 6) 5408 | -6/Extension | Entered Cetus 5408 | -6/Cetus | Accompanied by 4 allies 5426 | -6/Cetus | Spotted Cetus Guard 5426 | -6/Cetus | Spotted Cetus Guard 5426 | -6/Cetus | Spotted Cetus Guard 5426 | -6/Cetus | Spotted Cetus Guard 5433 | -6/Cetus | Allies destroyed Cetus Guard 5445 | -6/Cetus | Destroyed Cetus Guard 5459 | -6/Cetus | Allies destroyed Cetus Guard 5479 | -6/Cetus | Lost 3 allies 5482 | -6/Cetus | Lost 3 parts (1p2n) 5614 | -6/Cetus | Discovered new exit (range 21) 5653 | -6/Cetus | Spotted Cetus Guard 5653 | -6/Cetus | Spotted Cetus Guard 5653 | -6/Cetus | Spotted Cetus Guard 5653 | -6/Cetus | Spotted Cetus Guard 5753 | -6/Cetus | Build established: Scavenger-Mutant 5804 | -6/Cetus | Entered Archives 5843 | -6/Archives | Discovered new exit (range 22) 5854 | -6/Archives | Core integrity fell below 20% 5860 | -6/Archives | Entered Hub_04(d) 5880 | -6/Hub_04(d) | Lost 5 parts (2n2u1w) 5904 | -6/Hub_04(d) | Destroyed by G-50 Soldier with Heavy Laser Last Messages --------------- 05854_ Slug penetrates Archive Hub. 05854_ Archive Hub disabled. 05855_ Penetrated by Slug. 05855_ Slug penetrates Wall. [Achievement: Leap Before You Look] LOCATION=UNKNOWN GOAL=ESCAPE 05864_ Acquired Med. Treads. 05886_ Slammed into A-15 Conveyor. 05893_ O-16 Technician: "IFF HANDSHAKE FAILED. SECURING TERMINAL." 05894_ Triggered Ambush Trap. 05894_ B-48 Gladiator emerges from a hatch in the floor. 05894_ G-50 Soldier emerges from a hatch in the floor. 05894_ Armor Integrity Analyzer destroyed. 05894_ Enh. Optical Array destroyed. 05894_ System corrupted by crushing effect (+3). 05894_ System corrupted by crushing effect (+2). 05900_ ALERT: Hostiles spotted, dispatching reinforcements to Terminal H005. 05904_ Critical hit (Burn: +37). Map ----- +----------------------------------------------------+ | ?????????????????????????????????????????????????? | | ?????????????????????????????????????????????????? | | ????????????????????? ??????????????????????????? | | ????????????????????? ??????????????????????????? | | ????????????????????? ??????????????????????????? | | ????????????????????? ??????????????????????????? | | ????????????????????# ??????????????????????????? | | ????????????????????# ??????????????????????????? | | ????????????????????# ??????################## | | ????????????????????+ ??????# | | ????????????????????# ??????# | | ????????????????????# ??????# | | ????????????????????# #?????######+#########+#### | | ????????????????????# #?????# #?????????? | | ????????????????????# #?????# #?????????? | | ????????????????????# #?????# ! """ #?????????? | | ??????????????????### #?????# !! #?????????? | | ??????????????????? #?????# ! """ #?????????? | | ???????????????????? #?????# #?????????? | | ????????????????????# #?????# """ """ #?????????? | | ????????????????????# #?????# #?????????? | | ????????????????????# ########+########?????????? | | ????????????????????# #??????????? | | ????????????????????# ##############+#??????????? | | ??????????????#######+###########????????????????? | | ??????????# g @ #????????????????? | | ????????????"""" """" """" """" #????????????????? | | ???????????????" """" """" """" #????????????????? | | ??????????????"" """" """" """" ?????????????????? | | ??????????????"" """" """" """"??????????????????? | | ????????????? ??????????????????? | | ???????????? ? [ ???????????????????? | | ?????????????#??###############??????????????????? | | | | | | | | | | | | | | | | | | | | | | | | | | | | | | | | | | | +----------------------------------------------------+ Best States ------------- Heat Dissipation 56 Energy Generation 35 Energy Capacity 520 Matter Stores 300 Matter Capacity 300 Sight Range 22 Terrain Scan Density 10 Power Amplification 20 Armor Coverage 600 Evasion (%) 55 Targeting Accuracy 6 Armor Integrity Analysis 30 Recoil Reduction 5 Item Schematics ----------------- Battle Rifle | -7/Zion | Free Slug Cannon | -7/Zion | Free Flamer | -7/Zion | Free Ripper | -7/Zion | Free Robot Schematics ------------------ None Fabricated ------------ Nothing Alien Tech Used ----------------- None Achievements -------------- A New Friend Backstab Help From High Places It Was An Accident, I Swear Leap Before You Look One Hack Too Far Prison Break Remodeling Robot Respite The More The Merrier The One Unlikely Earthworm Challenges ------------ None Game ------ Seed StasisMeleeUnit Manual? 0 Play Time 00:50:29 Cumulative 2.1 hours Start 2024.04.14 @ 22:13:11 End 2024.04.14 @ 23:07:37 Sessions 1 Manual Loads 0 Difficulty Rogue Special Mode None Game No. 2 Rogue 2 Adventurer 0 Explorer 0 Win Type - Total 0 Types 0/0/0/0/0/0/0/0/0 Lore% 6 Gallery% 8 Achievement% 14 Wizard Run 0 Options --------- Layout 0 ASCII 0 Keyboard 1 Movement Numpad Keybinds 0 Fullscreen 1 Font 24/X11 Map View 76x50 Zoom Use 0% Tactical HUD 1 Map Filters NONE Filters NONE Steam 1 RUN: 97864132-c097-4df4-99dd-aaab7427c138